bitfinex-derivatives/quotes_SOLF0:USTF0_20240820
["timestamp","ask_amount","ask_price","bid_price","bid_amount"]
[1724148398648,0.04984427,146.37,146.34,0.04890325]
[1724148399748,0.04984427,146.37,146.35,3.415]
[1724148399749,3.46454427,146.37,146.35,3.415]
[1724148401940,0.04984427,146.37,146.35,3.415]
[1724148403546,10.47,146.42,146.35,10.47]
[1724148404045,3.4141,146.39,146.35,10.47]
[1724148404650,3.4141,146.39,146.36,3.4146]
[1724148404851,0.04534509,146.38,146.36,3.46097003]
[1724148406049,3.45984509,146.38,146.36,0.04637003]
[1724148406247,10.47,146.37,146.36,0.04637003]
[1724148406651,13.8846,146.37,146.36,0.04637003]
[1724148409852,3.45984509,146.38,146.36,0.04637003]
[1724148410757,3.45984509,146.38,146.36,3.46117003]
[1724148410962,3.45984509,146.38,146.36,0.04637003]
[1724148412444,0.04534509,146.38,146.36,6.89183273]
[1724148412752,0.04534509,146.38,146.36,3.46117003]
[1724148413144,0.04534509,146.38,146.36,6.90309871]
[1724148414058,0.04534509,146.38,146.36,3.46117003]
[1724148415150,0.04534509,146.38,146.37,3.4146]
[1724148420648,0.04534509,146.38,146.36,3.46107003]
[1724148421358,0.04534509,146.38,146.37,3.4146]
[1724148422965,0.04534509,146.38,146.36,3.46107003]
[1724148423765,0.04534509,146.38,146.37,3.4146]
[1724148424461,0.04534509,146.38,146.36,3.46107003]
[1724148425067,3.45984509,146.38,146.36,0.04637003]
[1724148426066,0.04534509,146.38,146.36,3.46117003]
[1724148426661,3.45974509,146.38,146.36,3.46117003]
[1724148427572,0.04534509,146.38,146.36,0.04637003]
[1724148428066,0.04534509,146.38,146.36,3.46097003]
[1724148428858,0.04534509,146.38,146.37,3.4146]
[1724148429664,0.04534509,146.38,146.37,6.89497208]
[1724148430068,10.47,146.42,146.37,3.48037208]
[1724148430371,10.47,146.42,146.36,1.3512]
[1724148430574,13.8835,146.42,146.36,4.71778955]
[1724148430872,13.8835,146.42,146.36,2.632]
[1724148431060,0.04642897,146.4,146.38,0.04745958]
[1724148431263,0.04642897,146.4,146.38,3.42565218]
[1724148431469,0.04642897,146.4,146.39,3.4141]
[1724148433464,0.04642897,146.4,146.38,3.46175958]
[1724148433660,0.04642897,146.4,146.38,0.04745958]
[1724148434264,3.46042897,146.4,146.38,0.04745958]
[1724148436277,0.04642897,146.4,146.38,3.46165958]
[1724148437579,0.04642897,146.4,146.39,3.4141]
[1724148439075,3.46032897,146.4,146.38,3.46175958]
[1724148439383,10.47,146.39,146.31,57.85128247]
[1724148439575,13.8847,146.37,146.33,3.4153]
[1724148439977,13.8847,146.37,146.31,37.50951847]
[1724148440171,13.8847,146.37,146.3,110.36511048]
[1724148440371,0.05154069,146.35,146.32,0.04408307]
[1724148440977,0.05154069,146.35,146.34,3.4152]
[1724148442385,0.05154069,146.35,146.32,0.04408307]
[1724148442878,10.52154069,146.35,146.32,0.04408307]
[1724148443480,3.4155,146.33,146.32,0.04408307]
[1724148446686,13.8855,146.33,146.32,0.04408307]
[1724148450792,3.4162,146.3,146.27,30.7168]
[1724148451782,3.4677076,146.3,146.27,30.76835026]
[1724148452190,3.4677076,146.3,146.27,129.34810448]
[1724148452483,3.4165,146.29,146.27,91.81925905]
[1724148452683,3.4165,146.29,146.27,30.76835026]
[1724148453296,3.4165,146.29,146.27,71.47081281]
[1724148453589,0.0515076,146.3,146.27,71.47081281]
[1724148453787,0.0515076,146.3,146.27,30.76835026]
[1724148454290,3.4166,146.29,146.27,27.35155026]
[1724148455395,3.4166,146.29,146.27,30.76835026]
[1724148456594,3.4166,146.29,146.27,3.46835026]
[1724148457596,13.8867,146.28,146.27,0.05155026]
[1724148460300,13.8867,146.28,146.23,2.29588181]
[1724148460301,3.4175,146.25,146.23,2.29588181]
[1724148461088,3.4175,146.25,146.23,5.71368181]
[1724148461293,3.4175,146.25,146.23,5.76196679]
[1724148461294,3.4674647,146.25,146.23,5.76196679]
[1724148462993,0.0499647,146.25,146.24,3.4176]
[1724148463994,0.0499647,146.25,146.23,5.76196679]
[1724148465002,0.0499647,146.25,146.24,3.4176]
[1724148466397,2.7116,146.34,146.23,2.34416679]
[1724148466598,10.47,146.29,146.23,2.29588181]
[1724148466904,3.4168,146.28,146.23,2.29588181]
[1724148467202,10.47,146.27,146.23,2.29588181]
[1724148467399,3.4173,146.26,146.23,2.29588181]
[1724148467806,3.46568986,146.26,146.24,0.04490632]
[1724148473309,3.46568986,146.26,146.24,3.46250632]
[1724148475010,10.51838986,146.26,146.24,0.04490632]
[1724148475805,10.51838986,146.26,146.24,3.46240632]
[1724148476709,13.93558986,146.26,146.24,3.46240632]
[1724148477014,10.51838986,146.26,146.25,3.4174]
[1724148477221,0.04838986,146.26,146.25,3.4174]
[1724148477716,10.47,146.29,146.26,3.417]
[1724148478014,13.8866,146.29,146.25,1.356]
[1724148478403,3.4166,146.29,146.25,1.356]
[1724148478707,0.0447917,146.28,146.26,0.04430163]
[1724148479305,0.0447917,146.28,146.27,3.4169]
[1724148481911,10.5147917,146.28,146.27,3.4169]
[1724148482411,10.5147917,146.28,146.26,0.04430163]
[1724148482606,10.47,146.27,146.26,0.04430163]
[1724148483908,13.8869,146.27,146.26,0.04430163]
[1724148488108,10.47,146.24,146.23,5.71368181]
[1724148489715,10.47,146.24,146.23,2.29588181]
[1724148489716,13.8876,146.24,146.23,2.29588181]
[1724148490815,3.46436691,146.25,146.23,2.29588181]
[1724148491022,10.47,146.24,146.23,2.29588181]
[1724148491411,3.46436691,146.25,146.23,2.29588181]
[1724148491612,10.47,146.24,146.23,2.29588181]
[1724148493722,3.46436691,146.25,146.23,5.71378181]
[1724148493723,10.51686691,146.25,146.23,5.71378181]
[1724148502833,0.04686691,146.25,146.24,3.4176]
[1724148503027,10.47,146.27,146.23,2.29588181]
[1724148504022,0.0456592,146.26,146.25,3.4172]
[1724148504534,10.5156592,146.26,146.24,0.04660876]
[1724148505833,13.9329592,146.26,146.24,3.46420876]
[1724148506530,10.5156592,146.26,146.24,3.46420876]
[1724148507135,13.9328592,146.26,146.24,3.46420876]
[1724148507926,13.9328592,146.26,146.24,0.04660876]
[1724148512642,10.47,146.25,146.24,0.04660876]
[1724148513133,10.47,146.25,146.16,2.5978585]
[1724148513134,72.82,146.25,146.16,2.5978585]
[1724148513336,10.47,146.18,146.16,2.5978585]
[1724148514343,10.52225552,146.18,146.16,2.64898746]
[1724148514939,10.47,146.17,146.16,2.64898746]
[1724148515528,13.8893,146.17,146.16,2.64898746]
[1724148520738,3.4202,146.13,146.12,2.46802167]
[1724148521338,13.8901,146.14,146.12,2.46802167]
[1724148521948,3.47102302,146.14,146.12,2.51372556]
[1724148522840,13.8902,146.13,146.12,2.51372556]
[1724148524842,0.05092302,146.14,146.12,2.51372556]
[1724148526845,3.47112302,146.14,146.12,2.51372556]
[1724148527036,13.94112302,146.14,146.12,2.51372556]
[1724148527239,10.52092302,146.14,146.12,2.51372556]
[1724148527444,3.4202,146.13,146.12,2.51372556]
[1724148530451,13.8902,146.13,146.12,2.51372556]
[1724148534252,10.47,146.13,146.08,2.61698804]
[1724148534456,10.47,146.09,146.08,2.61698804]
[1724148534844,13.8911,146.09,146.08,2.61698804]
[1724148536359,10.47,146.09,146.08,2.61698804]
[1724148536648,10.51720958,146.1,146.08,2.61698804]
[1724148537054,0.04720958,146.1,146.08,2.61698804]
[1724148538453,0.04720958,146.1,146.09,3.4211]
[1724148539241,3.4203,146.13,146.1,3.4208]
[1724148539440,10.47,146.13,146.08,5.27118804]
[1724148540139,0.04361121,146.12,146.09,0.04569876]
[1724148540755,0.04361121,146.12,146.11,3.4207]
[1724148541352,0.04361121,146.12,146.1,3.4208]
[1724148541659,10.47,146.11,146.09,0.04569876]
[1724148542153,10.47,146.11,146.09,3.46669876]
[1724148542856,10.47,146.11,146.09,0.04569876]
[1724148544148,0.04361121,146.12,146.09,0.04569876]
[1724148544557,10.51361121,146.12,146.09,0.04569876]
[1724148544750,10.47,146.1,146.09,0.04569876]
[1724148545466,10.47,146.11,146.09,0.04569876]
[1724148546453,0.04361121,146.12,146.09,0.04569876]
[1724148546454,10.47,146.1,146.09,0.04569876]
[1724148546663,10.47,146.1,146.04,2.65329752]
[1724148546857,10.47,146.07,146.05,3.49490639]
[1724148547061,3.3772581,146.13,146.04,2.65329752]
[1724148547062,10.47,146.08,146.06,3.34442602]
[1724148547363,10.47,146.08,146.04,2.65329752]
[1724148547748,10.47,146.08,146.04,6.12429238]
[1724148547953,10.51509698,146.07,146.05,0.04985922]
[1724148548167,10.52068951,146.07,146.05,0.04985922]
[1724148549254,13.94248951,146.07,146.05,0.04985922]
[1724148550457,10.52068951,146.07,146.05,0.04985922]
[1724148551463,10.47,146.06,146.05,0.04985922]
[1724148552359,13.8918,146.06,146.05,3.43385757]
[1724148553364,13.8918,146.06,146.05,0.04985922]
[1724148553561,13.8918,146.06,146.04,2.65329752]
[1724148553562,3.4221,146.05,146.04,2.65329752]
[1724148555265,13.8919,146.06,146.04,2.65329752]
[1724148555461,10.47,146.06,146.04,2.65329752]
[1724148555855,10.47,146.06,146.04,6.07549752]
[1724148557066,0.05068951,146.07,146.05,3.4221]
[1724148557267,10.47,146.06,146.05,3.4221]
[1724148557767,0.05068951,146.07,146.06,3.4218]
[1724148557964,10.52068951,146.07,146.06,3.4218]
[1724148558777,0.05068951,146.07,146.06,3.4218]
[1724148560467,10.52068951,146.07,146.06,3.4218]
[1724148564872,0.05068951,146.07,146.06,3.4218]
[1724148565377,0.05068951,146.07,146.04,2.65329752]
[1724148565771,10.52068951,146.07,146.04,2.65329752]
[1724148566273,10.52068951,146.07,146.05,3.422]
[1724148566481,10.47,146.06,146.04,2.65329752]
[1724148566662,3.47228951,146.07,146.05,3.4147873]
[1724148566867,10.52068951,146.07,146.04,2.65329752]
[1724148567070,10.52068951,146.07,146.05,3.4219]
[1724148567269,10.52068951,146.07,146.05,6.88310234]
[1724148568579,10.52068951,146.07,146.06,3.4218]
[1724148568773,0.05068951,146.07,146.06,3.4218]
[1724148569276,49.81505513,146.15,146.05,3.46120234]
[1724148569580,10.47,146.11,146.04,2.65329752]
[1724148569775,10.47,146.11,146.08,3.4213]
[1724148570176,10.51875181,146.11,146.08,3.47264032]
[1724148571080,13.93955181,146.11,146.08,3.47264032]
[1724148571680,13.93955181,146.11,146.08,0.05134032]
[1724148571875,10.51875181,146.11,146.08,0.05134032]
[1724148572080,10.51875181,146.11,146.09,3.4211]
[1724148572268,10.51875181,146.11,146.08,0.05134032]
[1724148572474,0.04875181,146.11,146.08,0.05134032]
[1724148572775,0.04875181,146.11,146.1,3.4209]
[1724148572979,10.47,146.13,146.08,0.05134032]
[1724148573480,10.47,146.13,146.11,3.4205]
[1724148573979,10.51726881,146.13,146.11,0.05245928]
[1724148574181,10.51726881,146.13,146.11,3.47295928]
[1724148574581,0.04726881,146.13,146.11,0.05245928]
[1724148574774,10.51726881,146.13,146.11,0.05245928]
[1724148574975,10.51726881,146.13,146.12,3.4204]
[1724148575181,10.51726881,146.13,146.12,6.87505224]
[1724148575481,10.51726881,146.13,146.12,3.4204]
[1724148575683,10.51726881,146.13,146.12,3.43652925]
[1724148575875,10.51726881,146.13,146.11,3.47305928]
[1724148576077,10.47,146.12,146.11,3.47305928]
[1724148578175,10.47,146.12,146.11,6.88565195]
[1724148579285,10.51726881,146.13,146.12,3.4204]
[1724148579488,62.41,146.24,146.11,3.46505195]
[1724148579676,10.47,146.16,146.12,2.7257]
[1724148580386,10.47,146.16,146.12,6.15229433]
[1724148580588,10.47,146.16,146.15,3.4197]
[1724148582188,0.04543761,146.17,146.15,3.4197]
[1724148582380,10.47,146.16,146.15,3.4197]
[1724148584080,0.04543761,146.17,146.16,3.4195]
[1724148584081,10.51543761,146.17,146.16,3.4195]
[1724148584478,10.47,146.18,146.17,3.4191]
[1724148584684,6.8325,146.3,146.15,10.47]
[1724148584879,10.47,146.21,146.15,10.47]
[1724148585485,0.05054925,146.19,146.17,0.04326941]
[1724148585685,20.53,146.29,146.17,0.04326941]
[1724148585686,10.47,146.2,146.17,0.04326941]
[1724148585884,10.47,146.2,146.15,10.47]
[1724148586081,10.47,146.2,146.13,1.3729]
[1724148586286,10.47,146.2,146.14,10.47]
[1724148586780,0.04314489,146.18,146.17,3.4193]
[1724148588189,3.4182,146.22,146.19,3.4186]
[1724148588389,10.47,146.21,146.19,3.4186]
[1724148588984,10.47,146.21,146.2,3.48739004]
[1724148589590,10.47,146.21,146.19,3.46743703]
[1724148590294,10.47,146.21,146.19,0.04883703]
[1724148591191,10.47,146.21,146.2,3.40160653]
[1724148592790,10.47,146.21,146.19,3.46763703]
[1724148593699,10.47,146.21,146.2,3.35102502]
[1724148593905,10.47,146.21,146.2,6.76962502]
[1724148594693,10.51782072,146.22,146.2,6.76962502]
[1724148595395,13.93592072,146.22,146.2,3.35102502]
[1724148595597,13.93592072,146.22,146.19,3.46753703]
[1724148600097,3.4184,146.21,146.19,0.04883703]
[1724148600705,3.4184,146.21,146.2,3.40935854]
[1724148600901,3.4186,146.2,146.19,0.04883703]
[1724148601097,10.47,146.21,146.13,4.0138]
[1724148601399,10.47,146.16,146.13,4.0138]
[1724148602093,10.47,146.16,146.14,3.4199]
[1724148602289,10.51702028,146.16,146.14,3.4199]
[1724148603192,13.93662028,146.16,146.13,6.10924711]
[1724148604202,13.93662028,146.16,146.13,3.46834711]
[1724148604395,10.47,146.15,146.13,0.04824711]
[1724148605001,13.8898,146.15,146.13,0.04824711]
[1724148605396,0.04702028,146.16,146.14,3.4198]
[1724148606503,3.4197,146.15,146.13,0.04824711]
[1724148606801,10.51702028,146.16,146.13,0.04824711]
[1724148607190,13.93662028,146.16,146.13,3.46834711]
[1724148608601,0.04702028,146.16,146.14,3.4199]
[1724148610213,0.04702028,146.16,146.15,3.4197]
[1724148611008,0.04702028,146.16,146.14,3.4199]
[1724148611413,0.04702028,146.16,146.15,3.4197]
[1724148613296,3.419,146.19,146.16,3.4193]
[1724148613502,3.4187,146.2,146.14,10.47]
[1724148613703,3.4187,146.2,146.15,2.5538]
[1724148614217,0.0522254,146.19,146.18,3.4189]
[1724148620605,3.4182,146.22,146.18,3.4189]
[1724148620606,13.8877,146.24,146.21,3.4181]
[1724148620911,13.8877,146.24,146.22,3.49788224]
[1724148621713,13.93744979,146.24,146.22,3.54436408]
[1724148626318,10.47,146.23,146.12,3.42659433]
[1724148626526,10.47,146.19,146.13,3.9282]
[1724148626719,13.8889,146.19,146.13,3.9282]
[1724148627021,10.47,146.19,146.13,3.9282]
[1724148627525,0.04789787,146.17,146.16,3.4194]
[1724148629022,0.04789787,146.17,146.15,0.04445386]
[1724148631828,3.46719787,146.17,146.15,0.04445386]
[1724148632133,0.04789787,146.17,146.15,0.04445386]
[1724148633331,10.51789787,146.17,146.15,0.04445386]
[1724148633833,0.04789787,146.17,146.15,0.04445386]
[1724148634820,0.04789787,146.17,146.15,3.46415386]
[1724148635025,0.04789787,146.17,146.15,0.04445386]
[1724148635230,10.51789787,146.17,146.15,0.04445386]
[1724148635834,13.93739787,146.17,146.15,0.04445386]
[1724148636235,10.51789787,146.17,146.15,0.04445386]
[1724148640940,13.93719787,146.17,146.15,0.04445386]
[1724148643444,3.46719787,146.17,146.15,3.46415386]
[1724148643843,0.04789787,146.17,146.15,3.46415386]
[1724148647157,13.93719787,146.17,146.15,0.04445386]
[1724148651540,13.8895,146.16,146.15,0.04445386]
[1724148651741,10.47,146.16,146.12,3.42659433]
[1724148651948,0.04789787,146.17,146.07,22.97848408]
[1724148651949,10.47,146.13,146.07,22.97848408]
[1724148652144,10.47,146.12,146.07,26.33840645]
[1724148652338,10.47,146.12,146.07,5.96022237]
[1724148652750,13.8906,146.12,146.09,3.4211]
[1724148653048,0.04997676,146.11,146.09,3.4211]
[1724148653835,3.47067676,146.11,146.09,3.4211]
[1724148654745,3.47067676,146.11,146.08,3.46461221]
[1724148655052,3.47067676,146.11,146.08,6.85143816]
[1724148656054,3.47067676,146.11,146.09,3.4211]
[1724148657852,3.47067676,146.11,146.09,6.84132413]
[1724148658955,0.04997676,146.11,146.1,3.4209]
[1724148661052,3.35730459,146.18,146.11,3.4206]
[1724148661356,10.47,146.13,146.07,2.6003]
[1724148661557,10.47,146.13,146.07,16.53052851]
[1724148661756,3.4203,146.13,146.11,3.4206]
[1724148661955,60.74807826,146.16,146.09,10.47]
[1724148662156,0.04684789,146.13,146.11,0.0517934]
[1724148662363,3.50399425,146.21,146.12,10.47]
[1724148662661,10.47,146.19,146.12,13.1186]
[1724148663259,3.4192,146.18,146.14,3.4198]
[1724148663855,13.8894,146.17,146.15,3.36003447]
[1724148664056,10.51502096,146.17,146.15,3.36003447]
[1724148664662,13.93442096,146.17,146.14,3.46715133]
[1724148665463,0.04502096,146.17,146.15,3.45712948]
[1724148665652,0.04502096,146.17,146.14,0.04725133]
[1724148667063,0.04502096,146.17,146.15,3.44400861]
[1724148667561,10.51502096,146.17,146.15,6.86360861]
[1724148667861,10.47,146.16,146.14,0.04725133]
[1724148668066,13.8897,146.15,146.14,0.04725133]
[1724148671569,10.47,146.15,146.14,0.04725133]
[1724148672666,13.8896,146.16,146.14,0.04725133]
[1724148675464,3.4196,146.16,146.14,0.04725133]
[1724148676265,13.8896,146.16,146.14,0.04725133]
[1724148677175,10.47,146.16,146.06,21.69591468]
[1724148677357,41.92502096,146.17,146.06,21.69591468]
[1724148677358,10.47,146.12,146.06,13.0368]
[1724148677556,10.47,146.12,146.07,1.2813]
[1724148677863,10.47,146.12,146.09,3.421]
[1724148678473,10.51897529,146.12,146.09,3.47002508]
[1724148678769,10.51897529,146.12,146.09,6.85023439]
[1724148679661,13.93957529,146.12,146.09,3.42923439]
[1724148680271,3.46957529,146.12,146.09,3.42923439]
[1724148680571,13.93957529,146.12,146.09,3.42923439]
[1724148683974,3.46957529,146.12,146.09,6.85033439]
[1724148684358,0.04897529,146.12,146.09,3.42923439]
[1724148684770,0.04897529,146.12,146.1,3.4209]
[1724148685573,3.46947529,146.12,146.09,6.85033439]
[1724148687883,0.04897529,146.12,146.09,6.85033439]
[1724148688581,3.46957529,146.12,146.09,6.85033439]
[1724148689877,3.4207,146.11,146.09,6.85033439]
[1724148691575,3.46957529,146.12,146.09,6.85033439]
[1724148692668,3.46957529,146.12,146.1,3.4209]
[1724148692868,3.46957529,146.12,146.09,3.42923439]
[1724148693073,3.46957529,146.12,146.09,6.85023439]
[1724148696080,3.46957529,146.12,146.1,3.4209]
[1724148700993,3.46957529,146.12,146.09,3.42923439]
[1724148702793,3.46957529,146.12,146.1,3.4209]
[1724148704083,3.4207,146.11,146.09,6.85023439]
[1724148704689,0.04897529,146.12,146.09,6.85023439]
[1724148704892,3.46957529,146.12,146.09,6.85023439]
[1724148705694,3.46957529,146.12,146.1,3.4209]
[1724148706599,10.47,146.11,146.09,0.04902508]
[1724148707097,10.47,146.11,146.09,3.39573621]
[1724148707295,10.47,146.11,146.09,0.04902508]
[1724148707993,13.8908,146.11,146.09,3.46412018]
[1724148709290,3.4209,146.1,146.09,0.04902508]
[1724148709491,3.4209,146.1,146.09,3.47234506]
[1724148709802,10.51897529,146.12,146.09,6.89344506]
[1724148710301,13.93957529,146.12,146.09,6.89344506]
[1724148714906,3.4207,146.11,146.09,6.89344506]
[1724148716795,0.04897529,146.12,146.09,3.47234506]
[1724148716996,10.51897529,146.12,146.09,3.47234506]
[1724148717804,3.4207,146.11,146.09,6.89334506]
[1724148718101,3.4207,146.11,146.09,0.04902508]
[1724148718309,3.4209,146.1,146.09,0.04902508]
[1724148718605,3.4209,146.1,146.09,3.46926733]
[1724148718805,3.4209,146.1,146.09,0.04902508]
[1724148719400,3.4208,146.11,146.09,3.52774745]
[1724148719596,3.4208,146.11,146.09,0.04902508]
[1724148719796,10.51897529,146.12,146.09,0.04902508]
[1724148720205,10.51897529,146.12,146.1,3.44794326]
[1724148720405,10.47,146.11,146.09,0.04902508]
[1724148720807,10.47,146.11,146.09,3.45695551]
[1724148721116,0.04897529,146.12,146.09,3.44053999]
[1724148722113,0.04897529,146.12,146.11,3.4207]
[1724148725904,0.04897529,146.12,146.1,10.47]
[1724148725905,10.47,146.17,146.1,10.47]
[1724148726211,10.47,146.17,146.11,1.3694]
[1724148726414,34.1738,146.28,146.13,10.47]
[1724148726610,10.47,146.2,146.14,1.2698]
[1724148727010,0.05064671,146.18,146.16,0.0436649]
[1724148727315,6.8338,146.28,146.16,0.0436649]
[1724148727500,6.8338,146.28,146.17,3.47083333]
[1724148727501,10.47,146.21,146.17,3.47083333]
[1724148727703,13.8884,146.21,146.18,3.4189]
[1724148728408,13.93201309,146.21,146.18,3.46453828]
[1724148729810,10.51361309,146.21,146.19,3.4186]
[1724148730522,0.04361309,146.21,146.2,3.4186]
[1724148730817,0.04361309,146.21,146.18,0.04563828]
[1724148730818,10.47,146.23,146.18,0.04563828]
[1724148731412,10.47,146.23,146.17,4.6958316]
[1724148731707,13.8879,146.23,146.2,3.4184]
[1724148733409,3.4179,146.23,146.21,3.4183]
[1724148733722,13.8879,146.23,146.19,0.04550645]
[1724148733911,3.4177,146.24,146.21,3.4183]
[1724148734107,10.47,146.23,146.21,3.46171502]
[1724148735214,10.47,146.23,146.21,0.04341502]
[1724148736416,13.888,146.23,146.21,0.04341502]
[1724148738722,3.4181,146.22,146.21,0.04341502]
[1724148742322,13.8881,146.22,146.21,0.04341502]
[1724148743621,3.4179,146.23,146.21,0.04341502]
[1724148743818,13.8879,146.23,146.21,0.04418338]
[1724148745129,3.4181,146.22,146.21,0.04418338]
[1724148746625,3.418,146.23,146.21,0.04418338]
[1724148746820,0.1013,146.3,146.21,0.04418338]
[1724148747020,10.47,146.25,146.18,10.47]
[1724148747228,10.47,146.25,146.21,3.4183]
[1724148747229,3.4177,146.24,146.21,3.4183]
[1724148748730,3.4179,146.23,146.21,3.4183]
[1724148749329,3.4177,146.24,146.21,3.4183]
[1724148749733,52.0615114,146.3,146.22,3.4181]
[1724148750026,52.0615114,146.3,146.25,0.04365686]
[1724148750234,10.47,146.27,146.25,0.04365686]
[1724148751122,3.4172,146.26,146.25,0.04365686]
[1724148753132,10.47,146.28,146.25,0.04365686]
[1724148753926,3.4171,146.27,146.25,0.04365686]
[1724148757239,3.4172,146.26,146.25,0.04365686]
[1724148758529,10.47,146.26,146.2,1.3051]
[1724148759438,0.04365686,146.24,146.22,0.04852461]
[1724148759834,0.04365686,146.24,146.22,3.46662461]
[1724148761132,3.46145686,146.24,146.22,0.04852461]
[1724148761831,3.4179,146.23,146.22,0.04852461]
[1724148762727,13.8879,146.23,146.22,0.04852461]
[1724148768832,3.4179,146.23,146.22,0.04852461]
[1724148769030,13.8879,146.23,146.22,0.04852461]
[1724148771044,0.04365686,146.24,146.22,0.04852461]
[1724148771345,10.47,146.23,146.22,0.04852461]
[1724148771938,13.8879,146.23,146.22,0.04852461]
[1724148779045,3.419,146.18,146.15,1.292]
[1724148779246,41.92365686,146.24,146.15,1.292]
[1724148779247,10.47,146.19,146.15,1.292]
[1724148780140,3.46728721,146.18,146.16,0.04601857]
[1724148780934,0.04808721,146.18,146.16,0.04601857]
[1724148782144,0.04808721,146.18,146.16,3.46541857]
[1724148786335,0.04808721,146.18,146.17,3.41119225]
[1724148787241,0.04808721,146.18,146.17,6.83049225]
[1724148787451,0.04808721,146.18,146.17,3.4193]
[1724148787943,0.04808721,146.18,146.17,6.83606979]
[1724148788250,13.8887,146.2,146.17,6.83606979]
[1724148788550,3.4187,146.2,146.18,3.419]
[1724148788735,10.47,146.22,146.17,1.3002]
[1724148789155,10.47,146.22,146.17,4.66569774]
[1724148789343,0.04409426,146.21,146.17,4.66569774]
[1724148789743,3.4186,146.2,146.18,3.4189]
[1724148793853,3.46249426,146.21,146.18,3.4189]
[1724148798056,0.04409426,146.21,146.19,3.4188]
[1724148799456,0.04409426,146.21,146.2,3.4186]
[1724148803865,0.04409426,146.21,146.2,4.6891]
[1724148805671,13.8877,146.24,146.22,3.4181]
[1724148806063,10.47,146.24,146.23,3.4179]
[1724148806569,10.47,146.25,146.23,3.4179]
[1724148806770,10.47,146.25,146.24,3.4176]
[1724148808370,13.8873,146.26,146.24,3.4176]
[1724148809079,10.47,146.26,146.24,3.4176]
[1724148811866,3.4174,146.25,146.22,3.46929447]
[1724148812066,10.47,146.23,146.18,1.2855]
[1724148812284,10.47,146.21,146.18,1.2855]
[1724148812876,10.47,146.21,146.19,3.4187]
[1724148813479,10.52139447,146.21,146.19,3.47012535]
[1724148816085,13.93979447,146.21,146.19,3.47012535]
[1724148818581,10.52139447,146.21,146.19,3.47012535]
[1724148818785,10.52139447,146.21,146.19,0.05142535]
[1724148819780,13.93989447,146.21,146.19,3.47022535]
[1724148822575,3.4186,146.2,146.19,0.05142535]
[1724148823180,10.52139447,146.21,146.12,2.6078]
[1724148823384,10.47,146.18,146.12,2.6078]
[1724148823781,13.8892,146.18,146.15,3.4197]
[1724148824187,10.520913,146.18,146.15,3.46427886]
[1724148824982,13.940013,146.18,146.15,3.46427886]
[1724148826486,3.4194,146.17,146.15,0.04457886]
[1724148829291,3.470113,146.18,146.15,3.46427886]
[1724148829487,3.470113,146.18,146.15,0.04457886]
[1724148829693,0.050913,146.18,146.15,0.04457886]
[1724148830786,0.050913,146.18,146.16,3.4195]
[1724148831085,0.050913,146.18,146.15,0.04457886]
[1724148831894,3.4193,146.17,146.15,3.46417886]
[1724148833176,10.520913,146.18,146.15,0.04457886]
[1724148833383,0.050913,146.18,146.15,0.04457886]
[1724148833587,10.47,146.17,146.15,0.04457886]
[1724148834899,13.8894,146.17,146.15,0.04457886]
[1724148835086,10.47,146.17,146.15,0.04457886]
[1724148835690,3.4195,146.16,146.15,0.04457886]
[1724148841098,13.8895,146.16,146.15,0.04457886]
[1724148842800,10.47,146.16,146.15,0.04457886]
[1724148843503,13.8895,146.16,146.15,0.04457886]
[1724148844203,3.4195,146.16,146.15,0.04457886]
[1724148848104,13.8895,146.16,146.15,0.04457886]
[1724148858119,3.4195,146.16,146.15,0.04457886]
[1724148858909,10.47,146.17,146.15,0.04457886]
[1724148858910,13.8894,146.17,146.15,0.04457886]
[1724148861314,0.050913,146.18,146.15,0.04457886]
[1724148861315,13.8895,146.16,146.15,0.04457886]
[1724148867022,10.47,146.16,146.03,99.78913569]
[1724148867218,10.47,146.12,146.05,3.72908006]
[1724148867421,10.47,146.12,146.06,1.14108006]
[1724148867820,6.8381,146.19,146.08,10.47]
[1724148867821,10.47,146.13,146.08,10.47]
[1724148868035,10.47,146.15,146.09,1.3597]
[1724148868228,0.04678493,146.12,146.1,1.3033]
[1724148868418,3.4203,146.13,146.1,1.3033]
[1724148869227,3.4203,146.13,146.1,4.7241]